bitfinex/quotes_SOLUSD_20230112
["timestamp","ask_amount","ask_price","bid_price","bid_amount"]
[1673538332484,46.92,15.987,15.968,396.1]
[1673538332888,17.0,15.986,15.968,396.1]
[1673538333098,46.92,15.985,15.968,396.1]
[1673538333312,111.7084,15.984,15.969,20.0]
[1673538333528,111.7084,15.984,15.969,20.95554805]
[1673538333939,46.91,15.989,15.97,18.74554805]
[1673538334277,114.0348,15.991,15.971,20.0]
[1673538334491,160.9448,15.991,15.971,133.51554805]
[1673538334671,160.9448,15.991,15.972,0.95554805]
[1673538335012,160.9448,15.991,15.972,20.95554805]
[1673538335203,160.9448,15.991,15.973,20.0]
[1673538335421,160.9448,15.991,15.974,20.0]
[1673538335633,160.9448,15.991,15.975,20.0]
[1673538335841,114.0348,15.991,15.975,20.0]
[1673538336043,114.0348,15.991,15.976,20.0]
[1673538336255,20.0,15.99,15.974,20.0]
[1673538336465,46.91,15.989,15.974,20.0]
[1673538336683,46.91,15.989,15.972,20.0]
[1673538336892,17.0,15.988,15.972,20.0]
[1673538337099,46.92,15.987,15.972,20.0]
[1673538337324,37.0,15.986,15.965,0.95554805]
[1673538337533,46.92,15.985,15.966,108.9601]
[1673538337747,17.0,15.984,15.966,108.9601]
[1673538337955,46.93,15.983,15.966,108.9601]
[1673538338172,17.0,15.982,15.967,20.0]
[1673538338694,17.0,15.982,15.968,20.0]
[1673538339930,46.93,15.983,15.968,20.95554805]
[1673538340144,46.93,15.983,15.969,20.0]
[1673538340360,118.4713,15.984,15.97,17.79]
[1673538340577,118.4713,15.984,15.97,18.74554805]
[1673538340897,64.68,15.99,15.971,0.95554805]
[1673538341082,64.68,15.99,15.971,20.95554805]
[1673538341295,64.68,15.99,15.968,20.0]
[1673538341296,252.98,15.99,15.968,20.0]
[1673538341501,324.12,15.99,15.967,20.0]
[1673538341721,17.0,15.989,15.967,20.0]
[1673538342038,20.0,15.987,15.967,20.0]
[1673538342250,46.92,15.986,15.97,17.79]
[1673538342459,46.91,15.99,15.971,2.613]
[1673538342682,46.91,15.99,15.971,3.56854805]
[1673538342874,46.91,15.99,15.972,0.95554805]
[1673538343082,46.91,15.99,15.972,20.95554805]
[1673538343631,46.91,15.99,15.972,0.95554805]
[1673538343830,46.91,15.99,15.97,17.79]
[1673538343831,17.0,15.989,15.973,114.3747]
[1673538344049,20.0,15.987,15.973,114.3747]
[1673538344244,46.91,15.988,15.973,114.3747]
[1673538344992,17.0,15.987,15.973,114.3747]
[1673538345521,235.22,15.986,15.968,2.613]
[1673538346044,17.0,15.985,15.968,2.613]
[1673538346237,46.93,15.984,15.968,2.613]
[1673538346447,17.0,15.983,15.968,2.613]
[1673538346658,46.93,15.982,15.968,2.613]
[1673538346858,17.0,15.981,15.968,2.613]
[1673538347494,46.94,15.98,15.966,112.13]
[1673538347726,17.0,15.979,15.966,112.13]
[1673538348251,17.0,15.98,15.966,112.13]
[1673538348439,17.0,15.981,15.966,112.13]
[1673538348859,46.94,15.98,15.966,112.13]
[1673538352866,26.58,15.97,15.953,118.1616]
[1673538353073,66.97,15.969,15.953,118.1616]
[1673538353288,17.0,15.968,15.949,32.8]
[1673538353501,46.98,15.967,15.949,32.8]
[1673538353712,20.0,15.965,15.949,32.8]
[1673538354029,17.0,15.964,15.949,32.8]
[1673538356005,46.99,15.963,15.945,136.2727]
[1673538356237,37.0,15.962,15.945,116.2727]
[1673538356957,17.0,15.962,15.945,116.2727]
[1673538357171,17.0,15.963,15.945,116.2727]
[1673538357382,46.99,15.962,15.945,116.2727]
[1673538357592,46.99,15.962,15.946,20.0]
[1673538358251,17.0,15.963,15.946,20.0]
[1673538358544,46.98,15.966,15.95,26.73]
[1673538358738,188.3,15.975,15.95,26.73]
[1673538358739,46.98,15.967,15.95,26.73]
[1673538358945,46.98,15.967,15.951,20.0]
[1673538359383,20.0,15.966,15.95,26.73]
[1673538359711,20.0,15.966,15.948,20.0]
[1673538359907,63.98,15.965,15.948,20.0]
[1673538360840,17.0,15.965,15.948,20.0]
[1673538361048,46.99,15.964,15.948,20.0]
[1673538361264,46.98,15.965,15.948,20.0]
[1673538361497,17.0,15.963,15.948,20.0]
[1673538362006,17.0,15.964,15.948,56.02]
[1673538362340,46.98,15.967,15.948,56.02]
[1673538362657,164.7243,15.968,15.95,26.73]
[1673538362841,117.7543,15.968,15.952,20.0]
[1673538363269,117.7543,15.968,15.951,36.33617764]
[1673538363707,46.98,15.967,15.95,26.73]
[1673538364017,20.0,15.966,15.95,26.73]
[1673538364201,17.0,15.965,15.95,26.73]
[1673538364410,17.0,15.965,15.948,36.02]
[1673538364831,235.29,15.964,15.948,36.02]
[1673538365042,188.3,15.962,15.948,36.02]
[1673538365257,37.0,15.963,15.948,36.02]
[1673538365258,26.47,15.96,15.948,36.02]
[1673538365462,235.3,15.959,15.948,36.02]
[1673538365668,17.0,15.958,15.948,36.02]
[1673538365900,20.0,15.956,15.948,0.0048]
[1673538366120,20.0,15.956,15.931,117.016]
[1673538366121,188.3,15.954,15.931,117.016]
[1673538366308,26.47,15.95,15.931,117.016]
[1673538366520,20.0,15.948,15.931,117.016]
[1673538367571,20.0,15.948,15.93,26.54]
[1673538367796,20.0,15.946,15.93,26.54]
[1673538368121,20.0,15.946,15.926,148.92105661]
[1673538368330,64.04,15.945,15.926,112.5462]
[1673538368856,20.0,15.944,15.926,112.5462]
[1673538369042,17.0,15.943,15.926,112.5462]
[1673538369247,20.0,15.942,15.926,112.5462]
[1673538370317,26.63,15.94,15.926,112.5462]
[1673538370508,73.69,15.94,15.926,112.5462]
[1673538370714,17.0,15.939,15.926,112.5462]
[1673538370949,20.0,15.938,15.926,112.5462]
[1673538371995,20.0,15.938,15.914,20.0]
[1673538372217,17.0,15.937,15.915,109.3934]
[1673538372520,26.63,15.94,15.92,26.46]
[1673538372713,20.0,15.938,15.92,26.46]
[1673538372924,20.0,15.938,15.921,0.91405424]
[1673538373164,20.0,15.938,15.92,26.46]
[1673538373366,17.0,15.937,15.917,20.0]
[1673538373895,20.0,15.936,15.917,20.0]
[1673538374715,17.0,15.937,15.917,20.0]
[1673538374921,26.63,15.94,15.92,26.73]
[1673538375568,20.0,15.939,15.92,26.73]
[1673538375782,67.06,15.939,15.92,26.73]
[1673538376101,20.0,15.939,15.92,26.73]
[1673538376310,67.06,15.939,15.92,26.73]
[1673538376508,26.55,15.95,15.921,28.34393959]
[1673538376723,111.4234,15.948,15.922,7.04951]
[1673538376921,20.0,15.947,15.923,138.113]
[1673538377139,47.04,15.947,15.923,216.99425731]
[1673538377462,47.04,15.947,15.924,44.40231196]
[1673538377674,47.04,15.947,15.925,20.0]
[1673538377888,47.04,15.947,15.925,63.48825772]
[1673538378077,47.04,15.947,15.925,43.48825772]
[1673538378287,235.34,15.947,15.924,7.04862]
[1673538378499,26.47,15.94,15.923,118.113]
[1673538378718,20.0,15.939,15.923,118.113]
[1673538378929,67.06,15.939,15.923,118.113]
[1673538379145,17.0,15.938,15.923,118.113]
[1673538379670,20.0,15.937,15.923,118.113]
[1673538380092,20.0,15.937,15.916,28.34393959]
[1673538380409,20.0,15.937,15.912,109.241]
[1673538380410,179.7623,15.936,15.917,109.156]
[1673538380930,132.6923,15.936,15.917,109.156]
[1673538381144,20.0,15.935,15.917,109.156]
[1673538381880,17.0,15.934,15.917,109.156]
[1673538382721,20.0,15.933,15.917,109.156]
[1673538382928,17.0,15.932,15.917,109.156]
[1673538384292,26.6,15.93,15.91,26.54]
[1673538384488,26.6,15.93,15.912,107.7457]
[1673538384695,20.0,15.928,15.912,107.7457]
[1673538384913,17.0,15.927,15.912,107.7457]
[1673538386164,26.6,15.93,15.912,107.7457]
[1673538386373,17.0,15.929,15.912,107.7457]
[1673538386591,20.0,15.928,15.912,107.7457]
[1673538386924,17.0,15.927,15.912,107.7457]
[1673538387527,112.5256,15.928,15.912,107.7457]
[1673538387743,112.5256,15.928,15.913,20.0]
[1673538390911,112.5256,15.928,15.912,127.7457]
[1673538390912,112.5256,15.928,15.912,107.7457]
[1673538391245,17.0,15.927,15.912,107.7457]
[1673538392173,20.0,15.926,15.912,107.7457]
[1673538392501,17.0,15.925,15.912,107.7457]
[1673538393757,17.0,15.926,15.912,107.7457]
[1673538394173,112.5256,15.928,15.912,107.7457]
[1673538394710,112.5256,15.928,15.913,20.0]
[1673538395232,26.6,15.93,15.913,20.0]
[1673538395450,32.30717451,15.955,15.913,20.0]
[1673538395451,47.07,15.935,15.913,20.0]
[1673538395644,303.9923,15.936,15.914,0.92117263]
[1673538395859,47.07,15.935,15.914,0.92117263]
[1673538396183,115.6923,15.936,15.914,0.92117263]
[1673538396379,47.07,15.935,15.914,0.92117263]
[1673538397639,47.06,15.939,15.92,133.57]
[1673538397847,47.05,15.942,15.921,118.883]
[1673538398593,47.05,15.942,15.922,20.0]
[1673538398594,343.7808,15.942,15.922,20.0]
[1673538398810,26.47,15.94,15.922,20.0]
[1673538399017,47.06,15.939,15.922,20.0]
[1673538399225,20.0,15.938,15.921,118.883]
[1673538399463,47.06,15.937,15.922,20.0]
[1673538399654,47.06,15.938,15.922,20.0]
[1673538399970,47.05,15.941,15.922,20.0]
[1673538400997,17.0,15.94,15.922,20.0]
[1673538401208,47.06,15.939,15.922,20.0]
[1673538401640,47.05,15.941,15.922,20.0]
[1673538401846,108.4308,15.942,15.922,20.0]
[1673538402274,47.05,15.941,15.922,20.0]
[1673538402481,235.35,15.941,15.922,20.0]
[1673538402891,17.0,15.94,15.92,133.52]
[1673538403108,255.36,15.939,15.92,26.6]
[1673538403326,17.0,15.938,15.92,26.6]
[1673538403528,67.06,15.937,15.92,26.6]
[1673538403735,17.0,15.936,15.92,26.6]
[1673538403953,47.07,15.935,15.92,26.6]
[1673538404283,17.0,15.934,15.914,63.8261286]
[1673538404466,47.08,15.933,15.914,63.8261286]
[1673538405523,17.0,15.932,15.915,7.05261]
[1673538405736,17.0,15.932,15.914,28.34393959]
[1673538405737,47.08,15.931,15.912,138.0393]
[1673538405952,17.0,15.93,15.912,138.0393]
[1673538406598,184.8882,15.934,15.912,138.0393]
[1673538406791,17.0,15.933,15.912,138.0393]
[1673538407002,47.08,15.932,15.912,138.0393]
[1673538407838,17.0,15.931,15.912,138.0393]
[1673538408255,17.0,15.932,15.91,26.6]
[1673538408485,188.3,15.93,15.91,26.6]
[1673538408683,235.39,15.929,15.908,27.75460626]
[1673538408882,235.39,15.929,15.903,145.83754679]
[1673538408883,26.58,15.92,15.903,125.83754679]
[1673538409094,47.12,15.919,15.9,26.6]
[1673538409310,64.12,15.919,15.9,26.6]
[1673538410988,47.12,15.919,15.9,26.6]
[1673538411411,47.12,15.919,15.901,20.0]
[1673538412057,144.6843,15.92,15.901,20.0]
[1673538412478,47.12,15.919,15.901,20.0]
[1673538415110,47.1,15.926,15.902,7.05837]
[1673538415423,47.1,15.926,15.903,20.0]
[1673538415744,47.1,15.926,15.91,133.86]
[1673538415948,118.1043,15.928,15.91,133.86]
[1673538416141,118.1043,15.928,15.911,20.0]
[1673538416353,118.1043,15.928,15.911,63.30272901]
[1673538416776,118.1043,15.928,15.913,20.0]
[1673538418158,47.07,15.934,15.914,7.05305]
[1673538418467,188.3,15.939,15.92,26.73]
[1673538418468,47.07,15.935,15.92,26.73]
[1673538418673,119.7815,15.939,15.92,26.73]
[1673538418878,47.06,15.938,15.92,26.73]
[1673538419283,47.07,15.935,15.92,26.73]
[1673538420028,47.07,15.935,15.921,20.0]
[1673538420239,47.06,15.938,15.921,20.0]
[1673538422050,235.36,15.938,15.916,20.0]
[1673538422256,20.0,15.934,15.915,20.0]
[1673538422448,64.08,15.933,15.915,20.0]
[1673538424662,47.08,15.933,15.915,20.0]
[1673538424870,47.07,15.935,15.92,26.73]
[1673538425084,115.1463,15.936,15.92,26.73]
[1673538425292,115.1463,15.936,15.921,20.0]
[1673538425620,47.07,15.935,15.921,20.0]
[1673538425831,115.1463,15.936,15.921,20.0]
[1673538426651,47.05,15.943,15.921,63.30272901]
[1673538426882,164.559,15.943,15.921,70.35267901]
[1673538427508,352.859,15.943,15.921,27.04995]
[1673538428355,164.559,15.943,15.921,27.04995]
[1673538428784,164.559,15.943,15.922,119.6835]
[1673538429093,164.559,15.943,15.923,20.0]
[1673538429700,17.0,15.942,15.923,20.0]
[1673538429944,47.05,15.941,15.923,20.0]
[1673538431071,64.05,15.942,15.923,20.0]
[1673538431285,47.05,15.942,15.923,20.0]
[1673538431507,47.05,15.942,15.93,26.73]
[1673538431820,116.6633,15.944,15.93,26.73]
[1673538432040,116.6633,15.944,15.931,20.0]
[1673538432881,116.6633,15.944,15.932,20.0]
[1673538434328,116.6633,15.944,15.925,20.0]
[1673538434329,26.47,15.94,15.925,20.0]
[1673538434545,47.06,15.939,15.925,20.0]
[1673538437292,47.06,15.939,15.926,20.0]
[1673538437600,116.6633,15.944,15.927,7.04729]
[1673538437803,116.6633,15.944,15.928,20.0]
[1673538438019,116.6633,15.944,15.929,20.0]
[1673538438219,116.6633,15.944,15.93,46.73]
[1673538438743,116.6633,15.944,15.93,47.65117263]
[1673538438960,116.6633,15.944,15.931,20.92117263]
[1673538439162,116.6633,15.944,15.932,20.0]
[1673538439604,116.6633,15.944,15.933,20.0]
[1673538439788,116.6633,15.944,15.934,20.0]
[1673538442113,116.6633,15.944,15.935,20.0]
[1673538442542,116.6633,15.944,15.936,20.0]
[1673538444101,111.8515,15.949,15.937,20.0]
[1673538444321,116.9258,15.952,15.938,20.0]
[1673538445274,116.9258,15.952,15.939,20.0]
[1673538445681,116.9258,15.952,15.94,20.0]
[1673538446938,47.02,15.951,15.94,20.0]
[1673538447271,47.02,15.951,15.938,20.0]
[1673538448426,116.9258,15.952,15.938,20.0]
[1673538449901,116.9258,15.952,15.939,20.0]
[1673538450099,116.9258,15.952,15.94,20.0]
[1673538450298,116.9258,15.952,15.941,20.0]
[1673538450510,116.9258,15.952,15.942,20.0]
[1673538452932,116.9258,15.952,15.94,20.0]
[1673538453142,116.9258,15.952,15.938,20.0]
[1673538453363,47.02,15.951,15.938,20.0]
[1673538454949,116.9258,15.952,15.938,20.0]
[1673538455798,47.01,15.956,15.939,20.0]
[1673538456013,47.0,15.958,15.94,46.73]
[1673538456748,235.3,15.958,15.94,20.0]
[1673538456962,20.0,15.957,15.938,20.0]
[1673538457162,235.31,15.956,15.937,20.0]
[1673538457372,20.0,15.955,15.937,20.0]
[1673538457586,47.01,15.954,15.937,20.0]
[1673538457784,17.0,15.953,15.937,20.0]
[1673538457994,47.02,15.952,15.937,20.0]
[1673538458229,160.5243,15.952,15.937,20.0]
[1673538458749,47.01,15.957,15.94,26.46]
[1673538458956,119.1987,15.959,15.94,26.46]
[1673538458957,47.0,15.958,15.941,40.0]
[1673538459691,119.1987,15.959,15.941,40.90432966]
[1673538459898,119.1987,15.959,15.942,118.5832]
[1673538460114,119.1987,15.959,15.943,20.0]
[1673538460736,119.1987,15.959,15.944,20.0]
[1673538460941,119.1987,15.959,15.945,20.0]
[1673538461146,119.1987,15.959,15.946,20.0]
[1673538461681,119.1987,15.959,15.947,20.0]
[1673538462302,142.815,15.96,15.947,20.0]
[1673538462522,142.815,15.96,15.945,20.0]
[1673538462937,17.0,15.959,15.945,20.0]
[1673538463367,47.0,15.958,15.945,20.0]
[1673538463684,47.0,15.958,15.943,20.0]
[1673538463899,37.0,15.957,15.943,20.0]
[1673538464211,47.01,15.956,15.943,20.0]
[1673538464420,17.0,15.955,15.941,20.0]
[1673538464828,17.0,15.955,15.942,20.0]
[1673538465049,47.0,15.959,15.943,20.0]
[1673538465658,47.0,15.959,15.939,112.7884]
[1673538465659,20.0,15.958,15.935,57.58272901]
[1673538465880,235.31,15.957,15.935,57.58272901]
[1673538466089,20.0,15.956,15.935,57.58272901]
[1673538466305,64.01,15.955,15.935,57.58272901]
[1673538466719,20.0,15.954,15.935,57.58272901]
[1673538466936,64.02,15.953,15.935,57.58272901]
[1673538467156,64.02,15.953,15.936,20.0]
[1673538467690,64.02,15.953,15.937,20.0]
[1673538467898,111.6065,15.952,15.938,20.0]
[1673538469148,26.6,15.95,15.936,20.0]
[1673538469361,64.03,15.949,15.935,20.0]
[1673538469689,47.03,15.949,15.936,20.0]
[1673538470631,47.03,15.949,15.935,20.0]
[1673538471048,47.02,15.951,15.935,20.0]
[1673538471253,17.0,15.95,15.936,20.0]
[1673538471572,47.03,15.949,15.936,20.0]
[1673538471982,47.02,15.951,15.936,20.0]
[1673538472314,111.6065,15.952,15.936,20.0]
[1673538476828,111.6065,15.952,15.936,20.88013701]
[1673538477022,111.6065,15.952,15.936,58.46286602]
[1673538477233,111.6065,15.952,15.937,20.0]
[1673538477449,47.01,15.954,15.941,20.0]
[1673538477671,20.0,15.959,15.941,20.0]
[1673538477672,47.0,15.958,15.942,20.0]
[1673538478090,47.0,15.959,15.942,20.0]
[1673538478326,47.0,15.959,15.943,108.1268]
[1673538478538,20.0,15.958,15.944,20.0]
[1673538478735,235.31,15.957,15.944,20.0]
[1673538478933,20.0,15.956,15.937,37.58272901]
[1673538479268,47.01,15.955,15.937,37.58272901]
[1673538479487,20.0,15.954,15.937,37.58272901]
[1673538479787,64.02,15.953,15.937,37.58272901]
[1673538480316,64.02,15.953,15.938,20.0]
[1673538480526,116.4411,15.952,15.939,20.0]
[1673538480739,47.01,15.955,15.94,46.46]
[1673538481153,113.7642,15.956,15.94,46.46]
[1673538481357,113.7642,15.956,15.941,20.0]
[1673538481569,113.7642,15.956,15.942,20.0]
[1673538481779,47.0,15.959,15.942,20.0]
[1673538482619,47.0,15.959,15.943,20.0]
[1673538482826,116.215,15.96,15.944,20.0]
[1673538483138,116.215,15.96,15.945,20.0]
[1673538483346,116.215,15.96,15.946,20.0]
[1673538483576,116.215,15.96,15.947,20.0]
[1673538483790,116.215,15.96,15.948,20.0]
[1673538486183,116.215,15.96,15.946,20.0]
[1673538487669,274.86789436,15.989,15.95,26.46]
[1673538487670,46.98,15.967,15.95,26.46]
[1673538487862,230.28,15.967,15.95,26.46]
[1673538488072,230.28,15.967,15.951,20.0]
[1673538488280,41.98,15.967,15.951,20.0]
[1673538488504,41.98,15.967,15.952,20.0]
[1673538488716,41.98,15.967,15.953,20.0]
[1673538489886,46.97,15.969,15.953,20.0]
[1673538493854,46.97,15.969,15.954,0.72320299]
[1673538494190,46.96,15.974,15.954,104.488692]
[1673538494400,46.96,15.974,15.956,20.0]
[1673538494722,46.96,15.974,15.957,96.73011901]
[1673538495034,46.96,15.974,15.96,26.73]
[1673538495225,46.94,15.979,15.961,20.0]
[1673538495435,46.94,15.979,15.962,20.0]
[1673538495641,46.93,15.982,15.963,20.0]
[1673538496171,46.93,15.982,15.964,54.20132334]
[1673538496380,46.93,15.982,15.965,20.0]
[1673538496593,162.96,15.983,15.965,97.453322]
[1673538496915,116.03,15.983,15.966,43.25199866]
[1673538497132,116.03,15.983,15.967,20.0]
[1673538497457,116.03,15.983,15.968,20.0]
[1673538497649,116.03,15.983,15.969,20.0]
[1673538497856,108.9798,15.984,15.97,26.73]
[1673538498072,108.9798,15.984,15.971,20.0]
[1673538498482,108.9798,15.984,15.972,20.0]
[1673538498692,108.9798,15.984,15.973,20.0]
[1673538499429,108.9798,15.984,15.974,20.72320299]
[1673538499641,108.9798,15.984,15.975,20.0]
[1673538500181,108.9798,15.984,15.973,20.0]
[1673538500393,108.9798,15.984,15.971,20.0]
[1673538501446,108.9798,15.984,15.97,40.0]
[1673538501665,108.9798,15.984,15.97,20.0]
[1673538501865,63.93,15.983,15.968,42.52879567]
[1673538502202,46.93,15.983,15.968,42.52879567]
[1673538502507,46.93,15.983,15.969,20.0]
[1673538503235,46.93,15.983,15.97,20.0]
[1673538504167,37.0,15.982,15.965,20.0]
[1673538504388,46.94,15.981,15.965,20.0]
[1673538504810,20.0,15.98,15.965,20.0]
[1673538505019,46.94,15.979,15.965,20.0]
[1673538505349,20.0,15.977,15.965,20.0]
[1673538505538,46.94,15.979,15.965,20.0]
[1673538505755,108.9798,15.984,15.965,62.08477287]
[1673538505756,166.3819,15.983,15.965,62.08477287]
[1673538505952,119.4519,15.983,15.965,62.80797586]
[1673538506159,166.3819,15.983,15.965,62.80797586]
[1673538506379,166.3819,15.983,15.966,20.0]
[1673538506596,166.3819,15.983,15.968,20.0]
[1673538506918,17.0,15.982,15.969,20.0]
[1673538507127,20.0,15.98,15.967,20.0]
[1673538507342,46.94,15.979,15.967,20.0]
[1673538507528,46.94,15.981,15.966,20.0]
[1673538507740,17.0,15.98,15.966,20.0]
[1673538507949,46.94,15.979,15.966,20.0]
[1673538508795,17.0,15.978,15.966,20.0]
[1673538509637,139.4519,15.983,15.967,20.0]
[1673538509638,46.93,15.982,15.967,20.0]
[1673538509849,17.0,15.981,15.967,20.0]
[1673538510059,46.94,15.98,15.967,20.0]
[1673538510494,73.57,15.98,15.966,20.0]
[1673538512091,46.94,15.98,15.966,20.0]
[1673538512255,166.3819,15.983,15.966,20.0]
[1673538512469,166.3819,15.983,15.967,20.0]
[1673538512470,119.4519,15.983,15.967,20.0]
[1673538513320,166.3819,15.983,15.967,20.0]
[1673538513654,119.4519,15.983,15.967,20.0]
[1673538513849,108.9798,15.984,15.967,20.0]
[1673538514258,108.9798,15.984,15.967,56.47743954]
[1673538514580,108.9798,15.984,15.967,20.0]
[1673538514997,46.93,15.983,15.967,20.0]
[1673538515210,17.0,15.982,15.967,20.0]
[1673538515407,17.0,15.982,15.964,118.9634]
[1673538515618,26.6,15.98,15.964,118.9634]
[1673538515957,63.94,15.979,15.964,118.9634]
[1673538516161,20.0,15.978,15.964,118.9634]
[1673538516355,252.25,15.977,15.959,36.20316562]
[1673538516565,252.25,15.977,15.955,111.4213]
[1673538516775,113.1153,15.976,15.955,111.4213]
[1673538517006,83.95,15.975,15.955,111.4213]
[1673538517944,83.95,15.975,15.956,20.0]
[1673538518154,83.95,15.975,15.957,20.0]
[1673538518477,272.25,15.975,15.958,20.0]
[1673538519082,63.95,15.975,15.958,20.0]
[1673538519295,46.95,15.975,15.958,56.47743954]
[1673538519846,46.95,15.975,15.961,20.0]
[1673538520036,113.1153,15.976,15.962,20.0]
[1673538520243,113.1153,15.976,15.962,56.47743954]
[1673538521206,113.1153,15.976,15.963,20.0]
[1673538521397,113.1153,15.976,15.964,20.0]
[1673538521609,46.93,15.982,15.964,20.0]
[1673538521939,46.93,15.982,15.965,20.0]
[1673538522144,46.93,15.983,15.967,20.0]
[1673538522364,46.92,15.987,15.967,20.0]
[1673538522557,46.92,15.987,15.969,20.0]
[1673538522768,46.92,15.987,15.97,20.0]
[1673538523609,17.0,15.983,15.97,20.0]
[1673538525391,63.93,15.983,15.97,20.0]
[1673538527626,17.0,15.983,15.97,20.0]
[1673538527806,46.92,15.986,15.97,20.0]
[1673538528017,46.92,15.987,15.971,20.0]
[1673538528250,46.92,15.987,15.972,20.0]
[1673538528786,110.4576,15.988,15.972,20.0]
[1673538529502,110.4576,15.988,15.973,20.0]
[1673538530038,110.4576,15.988,15.974,20.0]
[1673538531179,73.77,15.99,15.974,20.0]
[1673538531403,46.91,15.991,15.974,20.0]
[1673538531613,46.91,15.991,15.975,20.0]
[1673538532227,46.91,15.991,15.976,20.0]
[1673538533180,111.9077,15.992,15.976,20.0]
[1673538533502,46.91,15.991,15.976,20.0]
[1673538533931,111.9077,15.992,15.976,20.0]
[1673538535713,46.91,15.991,15.976,20.0]
[1673538536538,17.0,15.99,15.976,20.0]
[1673538537183,46.91,15.991,15.976,20.0]
[1673538537389,46.91,15.991,15.977,20.0]
[1673538537585,111.9077,15.992,15.978,20.0]
[1673538538442,63.91,15.991,15.978,20.0]
[1673538538649,63.91,15.991,15.975,20.0]
[1673538540008,46.91,15.991,15.975,20.0]
[1673538541369,17.0,15.99,15.975,20.0]
[1673538541579,46.91,15.989,15.975,20.0]
[1673538541805,17.0,15.988,15.975,20.0]
[1673538542004,17.0,15.988,15.973,20.0]
[1673538542654,46.92,15.987,15.973,20.0]
[1673538543089,46.91,15.99,15.973,20.0]
[1673538543401,46.91,15.991,15.973,56.47743954]
[1673538543612,46.91,15.991,15.974,20.0]
[1673538543926,46.91,15.991,15.976,20.0]
[1673538544150,46.89,15.995,15.98,26.73]
[1673538544329,46.89,15.996,15.98,26.73]
[1673538544661,46.89,15.996,15.982,20.0]
[1673538544873,119.6056,15.997,15.982,20.0]
[1673538545088,18.75725104,16.003,15.982,20.0]
[1673538545089,32.30717451,16.014,15.99,26.46]
[1673538545271,323.07174514,16.03,16.0,26.73]
[1673538545272,105.3808,16.026,16.0,26.73]